fUSD/lending_fUSD_20250804
["ID","MTS","AMOUNT","RATE_DAILY","PERIOD"]
[377257957,1754307045071,-742.14,0.00038356,2]
[377257959,1754307045080,-676.4,0.00038356,2]
[377257961,1754307045095,-590.69,0.00038356,2]
[377257963,1754307045105,-400.0,0.00038356,2]
[377257965,1754307045114,-400.0,0.00038356,2]
[377257967,1754307045123,-1167.67,0.00038356,2]
[377257969,1754307045132,-2247.66,0.00038356,2]
[377257971,1754307045141,-693.24,0.00038356,2]
[377257973,1754307045150,-496.16,0.00038356,2]
[377257975,1754307045159,-400.0,0.00038356,2]
[377257977,1754307045169,-540.37,0.00038356,2]
[377257979,1754307045178,-400.0,0.00038356,2]
[377257981,1754307045187,-400.0,0.00038356,2]
[377257983,1754307045195,-400.0,0.00038356,2]
[377257985,1754307045204,-400.0,0.00038356,2]
[377257987,1754307045213,-412.31,0.00038356,2]
[377257989,1754307045223,-1662.71,0.00038356,2]
[377257990,1754307045232,-1670.85,0.00038356,2]
[377257992,1754307045241,-1799.02,0.00038356,2]
[377257994,1754307045250,-3035.75,0.00038356,2]
[377257996,1754307045259,-400.0,0.00038356,2]
[377257998,1754307045270,-551.34,0.00038356,2]
[377258000,1754307045279,-2180.52,0.00038356,2]
[377258002,1754307045288,-1680.17,0.00038356,2]
[377258004,1754307045297,-400.0,0.00038356,2]
[377258006,1754307045307,-400.0,0.00038356,2]
[377258008,1754307045317,-902.78,0.00038356,2]
[377258010,1754307045326,-2280.29,0.00038356,2]
[377258012,1754307045335,-401.71,0.00038356,2]
[377258014,1754307045344,-400.0,0.00038356,2]
[377258016,1754307045354,-400.0,0.00038356,2]
[377258018,1754307045363,-400.0,0.00038356,2]
[377258020,1754307045372,-400.0,0.00038356,2]
[377258022,1754307045381,-400.0,0.00038356,2]
[377258024,1754307045390,-539.97,0.00038356,2]
[377258026,1754307045399,-400.0,0.00038356,2]
[377258028,1754307045408,-1028.62,0.00038356,2]
[377258029,1754307045417,-956.34,0.00038356,2]
[377258030,1754307045426,-400.0,0.00038356,2]
[377258031,1754307045435,-400.0,0.00038356,2]
[377258032,1754307045444,-400.0,0.00038356,2]
[377258033,1754307045453,-400.0,0.00038356,2]
[377258034,1754307045463,-400.0,0.00038356,2]
[377258035,1754307045472,-400.0,0.00038356,2]
[377258036,1754307045482,-400.0,0.00038356,2]
[377258037,1754307045491,-400.0,0.00038356,2]
[377258038,1754307045499,-400.0,0.00038356,2]
[377258039,1754307045508,-6288.24,0.00038356,2]
[377258041,1754307045518,-400.0,0.00038356,2]
[377258042,1754307045527,-400.0,0.00038356,2]
[377258044,1754307045537,-1354.25,0.00038356,2]
[377258046,1754307045546,-749.02,0.00038356,2]
[377258048,1754307045556,-400.0,0.00038356,2]
[377258050,1754307045565,-1034.95,0.00038356,2]
[377258052,1754307045574,-400.0,0.00038356,2]
[377258054,1754307045584,-230.34113911,0.00038356,2]
[377258056,1754307045593,-400.0,0.00038356,2]
[377258058,1754307045602,-400.0,0.00038356,2]
[377258060,1754307045612,-772.52,0.00038356,2]
[377258062,1754307045621,-400.0,0.00038356,2]
[377258064,1754307045630,-400.0,0.00038356,2]
[377258066,1754307045639,-400.0,0.00038356,2]
[377258068,1754307045652,-405.34,0.00038356,2]
[377258070,1754307045661,-1372.4,0.00038356,2]
[377258072,1754307045670,-400.0,0.00038356,2]
[377258074,1754307045680,-400.0,0.00038356,2]
[377258076,1754307045689,-400.0,0.00038356,2]
[377258078,1754307045699,-201.6083347,0.00038356,2]
[377258080,1754307045709,-777.53,0.00038356,2]
[377258082,1754307045719,-400.0,0.00038356,2]
[377258084,1754307045730,-1822.68,0.00038356,2]
[377258086,1754307045740,-400.0,0.00038356,2]
[377258088,1754307045749,-400.0,0.00038356,2]
[377258090,1754307045759,-400.0,0.00038356,2]
[377258092,1754307045768,-1400.05,0.00038356,2]
[377258094,1754307045777,-4561.8,0.00038356,2]
[377258096,1754307045787,-1874.05,0.00038356,2]
[377258098,1754307045795,-1055.55,0.00038356,2]
[377258100,1754307045804,-400.0,0.00038356,2]
[377258102,1754307045813,-400.0,0.00038356,2]
[377258104,1754307045822,-895.04,0.00038356,2]
[377258106,1754307045831,-400.0,0.00038356,2]
[377258108,1754307045840,-686.05,0.00038356,2]
[377258110,1754307045849,-1022.94,0.00038356,2]
[377258112,1754307045857,-1204.7,0.00038356,2]
[377258113,1754307045867,-1805.19,0.00038356,2]
[377258115,1754307045876,-2715.72,0.00038356,2]
[377258117,1754307045887,-400.0,0.00038356,2]
[377258119,1754307045896,-1840.46,0.00038356,2]
[377258121,1754307045905,-400.0,0.00038356,2]
[377258123,1754307045914,-2172.9,0.00038356,2]
[377258125,1754307045924,-1340.61,0.00038356,2]
[377258127,1754307045934,-400.0,0.00038356,2]
[377258129,1754307045943,-2041.89,0.00038356,2]
[377258131,1754307045953,-1789.51,0.00038356,2]
[377258133,1754307045962,-1095.94,0.00038356,2]
[377258135,1754307045972,-205.86,0.00038356,2]
[377258137,1754307045981,-400.0,0.00038356,2]
[377258139,1754307045990,-400.0,0.00038356,2]
[377258141,1754307046000,-400.0,0.00038356,2]
[377258143,1754307046009,-400.0,0.00038356,2]
[377258145,1754307046019,-758.03,0.00038356,2]
[377258147,1754307046028,-400.0,0.00038356,2]
[377258149,1754307046038,-400.0,0.00038356,2]
[377258151,1754307046050,-400.0,0.00038356,2]
[377258153,1754307046059,-527.07,0.00038356,2]
[377258155,1754307046069,-1103.63,0.00038356,2]
[377258157,1754307046078,-400.0,0.00038356,2]
[377258158,1754307046087,-400.0,0.00038356,2]
[377258160,1754307046096,-400.0,0.00038356,2]
[377258162,1754307046106,-544.57,0.00038356,2]
[377258164,1754307046115,-400.0,0.00038356,2]
[377258167,1754307046125,-400.0,0.00038356,2]
[377258168,1754307046135,-683.03,0.00038356,2]
[377258170,1754307046145,-1640.51,0.00038356,2]
[377258173,1754307046156,-400.0,0.00038356,2]
[377258174,1754307046169,-400.0,0.00038356,2]
[377258176,1754307046178,-2189.71,0.00038356,2]
[377258178,1754307046187,-1701.09,0.00038356,2]
[377258180,1754307046196,-2189.71,0.00038356,2]
[377258182,1754307046206,-1617.39,0.00038356,2]
[377258184,1754307046216,-2189.71,0.00038356,2]
[377258186,1754307046226,-2189.71,0.00038356,2]
[377258188,1754307046236,-6692.2,0.00038356,2]
[377258190,1754307046245,-2189.71,0.00038356,2]
[377258192,1754307046255,-1984.91,0.00038356,2]
[377258194,1754307046264,-400.0,0.00038356,2]
[377258196,1754307046273,-1362.62,0.00038356,2]
[377258198,1754307046283,-400.0,0.00038356,2]
[377258200,1754307046293,-400.0,0.00038356,2]
[377258202,1754307046302,-807.33,0.00038356,2]
[377258205,1754307046311,-756.65,0.00038356,2]
[377258207,1754307046320,-602.62,0.00038356,2]
[377258209,1754307046329,-400.0,0.00038356,2]
[377258211,1754307046338,-1920.03,0.00038356,2]
[377258212,1754307046347,-462.96,0.00038356,2]
[377258214,1754307046357,-400.0,0.00038356,2]
[377258216,1754307046366,-400.0,0.00038356,2]
[377258218,1754307046376,-400.0,0.00038356,2]
[377258220,1754307046386,-400.0,0.00038356,2]
[377258222,1754307046396,-400.0,0.00038356,2]
[377258224,1754307046405,-400.0,0.00038356,2]
[377258226,1754307046415,-400.0,0.00038356,2]
[377258228,1754307046425,-400.0,0.00038356,2]
[377258230,1754307046434,-1170.37,0.00038356,2]
[377258232,1754307046444,-815.79,0.00038356,2]
[377258234,1754307046453,-400.0,0.00038356,2]
[377258236,1754307046463,-400.0,0.00038356,2]
[377258238,1754307046472,-1923.03,0.00038356,2]
[377258240,1754307046481,-400.0,0.00038356,2]
[377258242,1754307046493,-400.0,0.00038356,2]
[377258244,1754307046502,-400.0,0.00038356,2]
[377258246,1754307046510,-400.0,0.00038356,2]
[377258248,1754307046519,-419.23,0.00038356,2]
[377258250,1754307046528,-400.0,0.00038356,2]
[377258252,1754307046536,-400.0,0.00038356,2]
[377258254,1754307046545,-400.0,0.00038356,2]
[377258256,1754307046555,-400.0,0.00038356,2]
[377258258,1754307046564,-2951.47,0.00038356,2]
[377258260,1754307046574,-400.0,0.00038356,2]
[377258262,1754307046583,-400.0,0.00038356,2]
[377258264,1754307046593,-400.0,0.00038356,2]
[377258266,1754307046603,-400.0,0.00038356,2]
[377258268,1754307046612,-400.0,0.00038356,2]
[377258270,1754307046621,-400.0,0.00038356,2]
[377258272,1754307046631,-424.01,0.00038356,2]
[377258274,1754307046640,-667.25,0.00038356,2]
[377258276,1754307046652,-400.0,0.00038356,2]
[377258278,1754307046662,-499.95126576,0.00038356,2]
[377258280,1754307046671,-400.0,0.00038356,2]
[377258282,1754307046680,-400.0,0.00038356,2]
[377258284,1754307046690,-1583.35,0.00038356,2]
[377258286,1754307046701,-408.78,0.00038356,2]
[377258288,1754307046710,-400.0,0.00038356,2]
[377258290,1754307046719,-1978.15,0.00038356,2]
[377258292,1754307046729,-2203.37,0.00038356,2]
[377258294,1754307046738,-1867.52,0.00038356,2]
[377258296,1754307046747,-1225.58,0.00038356,2]
[377258298,1754307046757,-500.0,0.00038373,5]
[377258300,1754307046766,-500.0,0.00038373,5]
[377258302,1754307046776,-341.83515119,0.00038373,5]
[377258304,1754307046786,-503.12417031,0.00038373,5]
[377258306,1754307046795,-508.58563695,0.00038373,2]
[377258309,1754307046805,-4263.88907202,0.00038393,2]
[377258311,1754307046815,-211.425049,0.000384,3]
[377258313,1754307046824,-1539.28287758,0.00038483,2]
[377258315,1754307046833,-4263.88907202,0.0003853,2]
[377258317,1754307046842,-265.66797079,0.00038558,2]
[377258319,1754307046851,-976.97716081,0.00038574,2]
[377258321,1754307046861,-785.43159314,0.00038588,2]
[377258323,1754307046870,-38781.35975281,0.00038597,2]
[377258325,1754307046879,-1683.91348352,0.0003861,2]
[377258327,1754307046888,-2189.71,0.0003862,2]
[377258329,1754307046897,-2189.71,0.0003862,2]
[377258331,1754307046907,-2189.71,0.00038629,2]
[377258333,1754307046916,-2189.71,0.00038629,2]
[377258335,1754307046926,-2189.71,0.00038629,2]
[377258337,1754307046935,-400.0,0.0003863,2]
[377258339,1754307046946,-1384.01,0.0003863,2]
[377258341,1754307046955,-400.0,0.0003863,2]
[377258343,1754307046965,-403.4337051,0.0003863,2]
[377258345,1754307046975,-400.0,0.0003863,2]
[377258347,1754307046984,-462.58,0.0003863,2]
[377258349,1754307046994,-400.0,0.0003863,2]
[377258351,1754307047002,-530.71,0.0003863,2]
[377258353,1754307047011,-400.0,0.0003863,2]
[377258355,1754307047021,-419.14359257,0.0003863,2]
[377258357,1754307047031,-419.14359257,0.0003863,2]
[377258359,1754307047041,-2083.77,0.0003863,2]
[377258361,1754307047050,-472.31089014,0.0003863,2]
[377258363,1754307047059,-400.0,0.0003863,2]
[377258365,1754307047068,-489.8,0.0003863,2]
[377258367,1754307047077,-408.05,0.0003863,2]
[377258369,1754307047085,-400.0,0.0003863,2]
[377258370,1754307047094,-400.0,0.0003863,2]
[377258371,1754307047103,-400.0,0.0003863,2]
[377258372,1754307047113,-460.0,0.0003863,2]
[377258373,1754307047121,-400.0,0.0003863,2]
[377258374,1754307047131,-400.0,0.0003863,2]
[377258375,1754307047140,-400.0,0.0003863,2]
[377258376,1754307047149,-400.0,0.0003863,2]
[377258377,1754307047158,-597.5,0.0003863,2]
[377258378,1754307047167,-667.04,0.0003863,2]
[377258380,1754307047176,-400.0,0.0003863,2]
[377258381,1754307047185,-400.0,0.0003863,2]
[377258383,1754307047194,-400.0,0.0003863,2]
[377258385,1754307047204,-400.0,0.0003863,2]
[377258387,1754307047213,-400.0,0.0003863,2]
[377258389,1754307047222,-400.0,0.0003863,2]
[377258391,1754307047232,-400.0,0.0003863,2]
[377258393,1754307047241,-400.0,0.0003863,2]
[377258395,1754307047250,-590.95,0.0003863,2]
[377258397,1754307047259,-508.94,0.0003863,2]
[377258399,1754307047268,-400.0,0.0003863,2]
[377258401,1754307047278,-400.0,0.0003863,2]
[377258403,1754307047287,-995.62,0.0003863,2]
[377258405,1754307047296,-400.0,0.0003863,2]
[377258407,1754307047306,-400.0,0.0003863,2]
[377258409,1754307047314,-2413.42,0.0003863,2]
[377258411,1754307047323,-400.0,0.0003863,2]
[377258413,1754307047332,-568.78,0.0003863,2]
[377258415,1754307047342,-400.0,0.0003863,2]
[377258417,1754307047351,-400.0,0.0003863,2]
[377258419,1754307047360,-1662.7,0.0003863,2]
[377258421,1754307047370,-400.0,0.0003863,2]
[377258423,1754307047379,-400.0,0.0003863,2]
[377258425,1754307047388,-421.46,0.0003863,2]
[377258427,1754307047397,-1940.39,0.0003863,2]
[377258429,1754307047407,-1365.06,0.0003863,2]
[377258431,1754307047416,-400.0,0.0003863,2]
[377258433,1754307047425,-952.93,0.0003863,2]
[377258435,1754307047435,-294.29614176,0.0003863,2]
[377258437,1754307047444,-400.0,0.0003863,2]
[377258439,1754307047453,-400.0,0.0003863,2]
[377258441,1754307047464,-400.0,0.0003863,2]
[377258444,1754307047482,-400.0,0.0003863,2]
[377258446,1754307047494,-400.0,0.0003863,2]
[377258448,1754307047503,-400.0,0.0003863,2]
[377258451,1754307047513,-681.74,0.0003863,2]
[377258453,1754307047523,-1270.32,0.0003863,2]
[377258455,1754307047533,-400.0,0.0003863,2]
[377258456,1754307047542,-400.0,0.0003863,2]
[377258458,1754307047552,-400.0,0.0003863,2]
[377258460,1754307047561,-495.94,0.0003863,2]
[377258462,1754307047570,-400.0,0.0003863,2]
[377258464,1754307047580,-400.0,0.0003863,2]
[377258466,1754307047589,-400.0,0.0003863,2]
[377258468,1754307047599,-400.0,0.0003863,2]
[377258470,1754307047608,-400.0,0.0003863,2]
[377258472,1754307047617,-1990.45,0.0003863,2]
[377258474,1754307047626,-400.0,0.0003863,2]
[377258476,1754307047636,-400.0,0.0003863,2]
[377258478,1754307047646,-400.0,0.0003863,2]
[377258480,1754307047659,-400.0,0.0003863,2]
[377258482,1754307047669,-400.0,0.0003863,2]
[377258484,1754307047678,-1607.54,0.0003863,2]
[377258486,1754307047688,-1402.16,0.0003863,2]
[377258488,1754307047699,-519.5,0.0003863,2]
[377258490,1754307047708,-980.14,0.0003863,2]
[377258492,1754307047718,-400.0,0.0003863,2]
[377258494,1754307047729,-1568.88,0.0003863,2]
[377258496,1754307047739,-239.63284814,0.0003863,2]
[377258498,1754307047749,-400.0,0.0003863,2]
[377258500,1754307047759,-400.0,0.0003863,2]
[377258502,1754307047770,-445.44,0.0003863,2]
[377258504,1754307047779,-2149.98,0.0003863,2]
[377258506,1754307047789,-400.0,0.0003863,2]
[377258508,1754307047798,-400.0,0.0003863,2]
[377258510,1754307047808,-400.0,0.0003863,2]
[377258512,1754307047818,-1328.71,0.0003863,2]
[377258514,1754307047828,-400.0,0.0003863,2]
[377258516,1754307047837,-400.0,0.0003863,2]
[377258518,1754307047847,-400.0,0.0003863,2]
[377258520,1754307047857,-400.0,0.0003863,2]
[377258522,1754307047866,-384.64640896,0.0003863,2]
[377258524,1754307047876,-586.64,0.0003863,2]
[377258526,1754307047885,-400.0,0.0003863,2]
[377258528,1754307047895,-400.0,0.0003863,2]
[377258530,1754307047904,-400.0,0.0003863,2]
[377258532,1754307047913,-3263.75,0.0003863,2]
[377258535,1754307047928,-1104.52,0.0003863,2]
[377258537,1754307047937,-436.1,0.0003863,2]
[377258539,1754307047947,-636.35,0.0003863,2]
[377258541,1754307047957,-400.0,0.0003863,2]
[377258543,1754307047967,-1329.24,0.0003863,2]
[377258545,1754307047977,-644.79,0.0003863,2]
[377258547,1754307047986,-400.0,0.0003863,2]
[377258549,1754307047996,-400.0,0.0003863,2]
[377258550,1754307048006,-468.62,0.0003863,2]
[377258552,1754307048016,-400.0,0.0003863,2]
[377258554,1754307048029,-400.0,0.0003863,2]
[377258556,1754307048039,-1127.15,0.0003863,2]
[377258558,1754307048049,-701.03,0.0003863,2]
[377258560,1754307048059,-400.0,0.0003863,2]
[377258563,1754307048070,-400.0,0.0003863,2]
[377258565,1754307048080,-199.54,0.0003863,2]
[377258567,1754307048090,-176.37658161,0.0003863,2]
[377258568,1754307048100,-400.0,0.0003863,2]
[377258569,1754307048109,-400.0,0.0003863,2]
[377258570,1754307048119,-452.76,0.0003863,2]
[377258571,1754307048128,-992.4,0.0003863,2]
[377258572,1754307048138,-400.0,0.0003863,2]
[377258573,1754307048148,-400.0,0.0003863,2]
[377258574,1754307048158,-400.0,0.0003863,2]
[377258575,1754307048168,-400.0,0.0003863,2]
[377258576,1754307048178,-400.0,0.0003863,2]
[377258577,1754307048188,-400.0,0.0003863,2]
[377258578,1754307048197,-400.0,0.0003863,2]
[377258579,1754307048207,-534.51,0.0003863,2]
[377258580,1754307048216,-892.92,0.0003863,2]
[377258581,1754307048226,-400.0,0.0003863,2]
[377258582,1754307048235,-811.05,0.0003863,2]
[377258583,1754307048245,-400.0,0.0003863,2]
[377258584,1754307048255,-1343.86,0.0003863,2]
[377258585,1754307048264,-400.0,0.0003863,2]
[377258586,1754307048276,-628.82,0.0003863,2]
[377258588,1754307048286,-1242.39,0.0003863,2]
[377258590,1754307048294,-1542.48,0.0003863,2]
[377258592,1754307048304,-487.99398845,0.0003863,2]
[377258594,1754307048314,-876.68,0.0003863,2]
[377258596,1754307048323,-400.0,0.0003863,2]
[377258598,1754307048333,-912.37,0.0003863,2]
[377258600,1754307048342,-400.0,0.0003863,2]
[377258602,1754307048351,-400.0,0.0003863,2]
[377258604,1754307048361,-400.0,0.0003863,2]
[377258606,1754307048371,-400.0,0.0003863,2]
[377258609,1754307048382,-400.0,0.0003863,2]
[377258611,1754307048396,-581.56,0.0003863,2]
[377258613,1754307048405,-812.07,0.0003863,2]
[377258615,1754307048414,-400.0,0.0003863,2]
[377258617,1754307048424,-540.98,0.0003863,2]
[377258618,1754307048433,-466.17,0.0003863,2]
[377258619,1754307048442,-400.0,0.0003863,2]
[377258620,1754307048451,-400.0,0.0003863,2]
[377258621,1754307048461,-892.29,0.0003863,2]
[377258622,1754307048470,-512.04,0.0003863,2]
[377258623,1754307048479,-400.0,0.0003863,2]
[377258624,1754307048488,-232.82831448,0.0003863,2]
[377258625,1754307048497,-463.42554629,0.0003863,2]
[377258626,1754307048506,-1204.41,0.0003863,2]
[377258627,1754307048515,-507.62,0.0003863,2]
[377258629,1754307048527,-978.92,0.0003863,2]
[377258631,1754307048536,-2032.62,0.0003863,2]
[377258633,1754307048545,-400.0,0.0003863,2]
[377258635,1754307048555,-483.03,0.0003863,2]
[377258637,1754307048564,-400.0,0.0003863,2]
[377258638,1754307048574,-623.34,0.0003863,2]
[377258640,1754307048584,-400.0,0.0003863,2]
[377258642,1754307048594,-400.0,0.0003863,2]
[377258644,1754307048603,-400.0,0.0003863,2]
[377258646,1754307048613,-1282.08,0.0003863,2]
[377258648,1754307048622,-954.63,0.0003863,2]
[377258650,1754307048632,-1000.0,0.0003863,2]
[377258652,1754307048642,-400.0,0.0003863,2]
[377258654,1754307048654,-424.03,0.0003863,2]
[377258657,1754307048665,-400.0,0.0003863,2]
[377258659,1754307048675,-862.61,0.0003863,2]
[377258660,1754307048684,-694.26,0.0003863,2]
[377258663,1754307048696,-920.74,0.0003863,2]
[377258665,1754307048706,-446.01,0.0003863,2]
[377258666,1754307048716,-583.16,0.0003863,2]
[377258668,1754307048726,-400.0,0.0003863,2]
[377258670,1754307048736,-571.07,0.0003863,2]
[377258672,1754307048745,-556.35,0.0003863,2]
[377258674,1754307048755,-302.84334493,0.0003863,2]
[377258676,1754307048765,-400.0,0.0003863,2]
[377258679,1754307048776,-862.3,0.0003863,2]
[377258681,1754307048786,-791.02,0.0003863,2]
[377258682,1754307048796,-400.0,0.0003863,2]
[377258685,1754307048806,-400.0,0.0003863,2]
[377258687,1754307048817,-400.0,0.0003863,2]
[377258688,1754307048826,-400.0,0.0003863,2]
[377258691,1754307048841,-663.93,0.0003863,2]
[377258693,1754307048850,-400.0,0.0003863,2]
[377258695,1754307048860,-958.9,0.0003863,2]
[377258697,1754307048870,-400.0,0.0003863,2]
[377258699,1754307048880,-400.0,0.0003863,2]
[377258701,1754307048890,-400.0,0.0003863,2]
[377258703,1754307048900,-400.0,0.0003863,2]
[377258705,1754307048910,-481.81,0.0003863,2]
[377258707,1754307048920,-680.83,0.0003863,2]
[377258709,1754307048930,-489.66,0.0003863,2]
[377258711,1754307048940,-2362.47,0.0003863,2]
[377258713,1754307048950,-2465.19,0.0003863,2]
[377258715,1754307048960,-414.65,0.0003863,2]
[377258717,1754307048970,-838.53,0.0003863,2]
[377258719,1754307048980,-400.0,0.0003863,2]
[377258721,1754307048990,-1047.46,0.0003863,2]
[377258723,1754307049000,-400.0,0.0003863,2]
[377258725,1754307049010,-543.05,0.0003863,2]
[377258727,1754307049020,-476.33,0.0003863,2]
[377258729,1754307049029,-1205.09,0.0003863,2]
[377258731,1754307049039,-400.0,0.0003863,2]
[377258733,1754307049049,-1053.75,0.0003863,2]
[377258735,1754307049059,-445.54,0.0003863,2]
[377258737,1754307049068,-1000.0,0.0003863,2]
[377258739,1754307049078,-400.0,0.0003863,2]
[377258741,1754307049088,-400.0,0.0003863,2]
[377258743,1754307049098,-2547.72,0.0003863,2]
[377258771,1754307049352,-907.96,0.0003863,2]
[377258774,1754307049373,-900.03,0.0003863,2]
[377258776,1754307049383,-400.0,0.0003863,2]
[377258778,1754307049392,-400.0,0.0003863,2]
[377258780,1754307049402,-461.76,0.0003863,2]
[377258782,1754307049411,-468.49,0.0003863,2]
[377258784,1754307049421,-1003.97,0.0003863,2]
[377258786,1754307049430,-801.26,0.0003863,2]
[377258788,1754307049440,-616.9,0.0003863,2]
[377258790,1754307049449,-747.36,0.0003863,2]
[377258792,1754307049458,-1686.22,0.0003863,2]
[377258795,1754307049468,-400.0,0.0003863,2]
[377258797,1754307049478,-877.94,0.0003863,2]
[377258799,1754307049487,-400.0,0.0003863,2]
[377258801,1754307049497,-521.82,0.0003863,2]
[377258803,1754307049507,-400.0,0.0003863,2]
[377258805,1754307049517,-864.99,0.0003863,2]
[377258807,1754307049527,-982.85,0.0003863,2]
[377258809,1754307049536,-400.0,0.0003863,2]
[377258811,1754307049545,-477.5,0.0003863,2]
[377258813,1754307049555,-400.0,0.0003863,2]
[377258815,1754307049565,-792.37,0.0003863,2]
[377258817,1754307049574,-400.0,0.0003863,2]
[377258819,1754307049584,-929.68,0.0003863,2]
[377258821,1754307049593,-400.0,0.0003863,2]
[377258823,1754307049602,-449.71,0.0003863,2]
[377258825,1754307049612,-400.0,0.0003863,2]
[377258827,1754307049621,-415.04,0.0003863,2]
[377258829,1754307049631,-400.0,0.0003863,2]
[377258831,1754307049640,-400.0,0.0003863,2]
[377258833,1754307049652,-892.22,0.0003863,2]
[377258835,1754307049662,-625.39,0.0003863,2]
[377258837,1754307049671,-400.0,0.0003863,2]
[377258839,1754307049681,-400.0,0.0003863,2]
[377258841,1754307049690,-1082.15,0.0003863,2]
[377258843,1754307049701,-400.0,0.0003863,2]
[377258845,1754307049711,-419.27,0.0003863,2]
[377258847,1754307049720,-1261.52,0.0003863,2]
[377258849,1754307049731,-944.85,0.0003863,2]
[377258851,1754307049741,-769.58,0.0003863,2]
[377258853,1754307049750,-400.0,0.0003863,2]
[377258855,1754307049759,-400.0,0.0003863,2]
[377258857,1754307049768,-470.89,0.0003863,2]
[377258859,1754307049778,-867.8,0.0003863,2]
[377258861,1754307049787,-400.0,0.0003863,2]
[377258863,1754307049797,-781.34,0.0003863,2]
[377258865,1754307049806,-785.95,0.0003863,2]
[377258867,1754307049816,-400.0,0.0003863,2]
[377258869,1754307049826,-524.27,0.0003863,2]
[377258871,1754307049836,-400.0,0.0003863,2]
[377258873,1754307049846,-938.84,0.0003863,2]
[377258875,1754307049855,-542.14,0.0003863,2]
[377258877,1754307049866,-400.0,0.0003863,2]
[377258879,1754307049875,-400.0,0.0003863,2]
[377258880,1754307049885,-781.06,0.0003863,2]
[377258881,1754307049895,-803.77,0.0003863,2]
[377258882,1754307049905,-867.24,0.0003863,2]
[377258883,1754307049915,-400.0,0.0003863,2]
[377258884,1754307049925,-1067.13,0.0003863,2]
[377258885,1754307049935,-556.09,0.0003863,2]
[377258886,1754307049945,-400.0,0.0003863,2]
[377258887,1754307049954,-400.0,0.0003863,2]
[377258889,1754307049965,-600.36,0.0003863,2]
[377258891,1754307049975,-1075.4,0.0003863,2]
[377258893,1754307049985,-797.64,0.0003863,2]
[377258895,1754307049995,-400.0,0.0003863,2]
[377258897,1754307050004,-400.0,0.0003863,2]
[377258899,1754307050014,-823.92,0.0003863,2]
[377258901,1754307050024,-881.05,0.0003863,2]
[377258903,1754307050034,-400.0,0.0003863,2]
[377258905,1754307050043,-529.61,0.0003863,2]
[377258907,1754307050053,-400.0,0.0003863,2]
[377258909,1754307050063,-400.0,0.0003863,2]
[377258911,1754307050073,-516.88,0.0003863,2]
[377258913,1754307050083,-400.0,0.0003863,2]
[377258916,1754307050094,-2603.08,0.0003863,2]
[377258918,1754307050104,-818.41,0.0003863,2]
[377258920,1754307050116,-400.0,0.0003863,2]
[377258922,1754307050126,-1000.0,0.0003863,2]
[377258924,1754307050136,-1057.37,0.0003863,2]
[377258926,1754307050146,-1271.29,0.0003863,2]